fUST/lending_fUST_20250606
["ID","MTS","AMOUNT","RATE_DAILY","PERIOD"]
[364575634,1749146983087,421.21541039,0.0001863,2]
[364575635,1749146984003,440.0,0.00018356,2]
[364575636,1749146984256,440.0,0.0001863,2]
[364575637,1749146984509,440.0,0.00018904,2]
[364575638,1749146984863,440.0,0.00019178,2]
[364575639,1749146984971,440.0,0.00018356,2]
[364575640,1749146985110,440.0,0.00019452,2]
[364575641,1749146985143,440.0,0.00018356,2]
[364575642,1749146985251,440.0,0.0001863,2]
[364575643,1749146985366,440.0,0.0001863,2]
[364575644,1749146985392,440.0,0.00019726,2]
[364575645,1749146985619,159.61834141,0.00018904,2]
[364575646,1749146985652,557.57300131,0.0002,2]
[364575647,1749146985942,440.0,0.00018904,2]
[364575648,1749146986151,440.0,0.00019178,2]
[364575649,1749146986388,440.0,0.00019452,2]
[364575650,1749146986629,440.0,0.00019726,2]
[364575651,1749146986882,440.0,0.0002,2]
[364575652,1749146987170,430.0,0.00018356,2]
[364575653,1749146987199,283.84241964,0.00020273,2]
[364575654,1749146989104,440.0,0.00018356,2]
[364575655,1749146989424,420.0,0.0001863,2]
[364575656,1749146989511,192.15165512,0.00018356,2]
[364575657,1749146989574,430.0,0.00018356,2]
[364575658,1749146990631,440.0,0.00019804,2]
[364575659,1749146991634,430.0,0.00018356,2]
[364575660,1749147001028,444.13,0.00017152,2]
[364575661,1749147001517,440.0,0.00018356,2]
[364575662,1749147001543,888.26,0.00018712,2]
[364575663,1749147001789,440.0,0.0001863,2]
[364575664,1749147001995,1332.39,0.00020271,2]
[364575665,1749147002045,440.0,0.00018904,2]
[364575666,1749147002335,440.0,0.00019178,2]
[364575667,1749147002483,1776.51,0.0002183,2]
[364575668,1749147002574,440.0,0.00019452,2]
[364575669,1749147002826,440.0,0.00019726,2]
[364575670,1749147002934,440.0,0.00018356,2]
[364575671,1749147003108,440.0,0.0002,2]
[364575672,1749147003274,430.0,0.00018356,2]
[364575673,1749147003377,360.91254926,0.00020273,2]
[364575674,1749147003526,420.0,0.0001863,2]
[364575675,1749147004868,440.0,0.00018356,2]
[364575676,1749147005128,440.0,0.0001863,2]
[364575677,1749147005384,440.0,0.00018904,2]
[364575678,1749147005630,440.0,0.00019178,2]
[364575679,1749147005863,430.0,0.00018356,2]
[364575680,1749147005913,567.91808409,0.00018356,2]
[364575681,1749147005991,440.0,0.00018356,2]
[364575682,1749147006228,440.0,0.00019452,2]
[364575683,1749147006521,434.01025371,0.00019726,2]
[364575684,1749147008532,440.0,0.00018356,2]
[364575685,1749147008793,440.0,0.0001863,2]
[364575686,1749147009064,420.0,0.00018904,2]
[364575687,1749147012288,440.0,0.00018356,2]
[364575688,1749147013552,440.0,0.00018356,2]
[364575689,1749147013806,440.0,0.0001863,2]
[364575690,1749147014045,400.0,0.00018904,2]
[364575691,1749147018045,440.0,0.00018356,2]
[364575692,1749147018310,430.0,0.0001863,2]
[364575693,1749147020423,500.0,0.00018356,2]
[364575694,1749147022294,440.0,0.00018356,2]
[364575695,1749147022569,440.0,0.0001863,2]
[364575696,1749147022816,440.0,0.00018904,2]
[364575697,1749147023114,440.0,0.00019178,2]
[364575698,1749147023384,440.0,0.00019452,2]
[364575699,1749147023636,440.0,0.00019726,2]
[364575700,1749147023866,235.58194553,0.0002,2]
[364575701,1749147023891,440.0,0.00019804,2]
[364575702,1749147024151,430.0,0.00020078,2]
[364575703,1749147026290,440.0,0.00019804,2]
[364575704,1749147026412,440.0,0.00018356,2]
[364575705,1749147026553,386.81485453,0.00020078,2]
[364575706,1749147026685,440.0,0.0001863,2]
[364575707,1749147026965,440.0,0.00018904,2]
[364575708,1749147027111,500.0,0.00018356,2]
[364575709,1749147027219,440.0,0.00019178,2]
[364575710,1749147027480,440.0,0.00018356,2]
[364575711,1749147027508,440.0,0.00019452,2]
[364575712,1749147027824,440.0,0.0001863,2]
[364575713,1749147028016,440.0,0.00018904,2]
[364575714,1749147028133,440.0,0.00019726,2]
[364575715,1749147028266,440.0,0.00019178,2]
[364575716,1749147028501,430.0,0.00018356,2]
[364575717,1749147028531,335.16,0.00019452,2]
[364575718,1749147028559,440.0,0.0002,2]
[364575719,1749147028799,440.0,0.00020273,2]
[364575720,1749147029064,440.0,0.00020547,2]
[364575721,1749147029569,440.0,0.00020821,2]
[364575722,1749147029820,440.0,0.00021095,2]
[364575723,1749147030088,459.08410979,0.00021369,2]
[364575724,1749147030202,440.0,0.00019804,2]
[364575725,1749147030487,380.0,0.00020078,2]
[364575727,1749147031748,-1275.86,0.000219,2]
[364575728,1749147031759,-160.0,0.000219,2]
[364575729,1749147031768,-423.7637613,0.000219,2]
[364575730,1749147031780,-842.5625,0.000219,2]
[364575731,1749147031790,-300.0,0.00021916,2]
[364575732,1749147031799,-720.0,0.00021916,2]
[364575733,1749147031809,-1020.45,0.00021917,2]
[364575734,1749147031818,-440.0,0.00021917,2]
[364575735,1749147031828,-549.24,0.00021917,2]
[364575736,1749147031837,-440.0,0.00021917,2]
[364575737,1749147031846,-1015.78,0.00021917,2]
[364575738,1749147031855,-749.0,0.00022,30]
[364575739,1749147031865,-500.0,0.00022,2]
[364575740,1749147031874,-500.0,0.00022,2]
[364575741,1749147031885,-662.33750257,0.00022003,6]
[364575742,1749147031894,-1020.45,0.00022191,2]
[364575743,1749147031903,-440.0,0.00022191,2]
[364575744,1749147031913,-549.24,0.00022191,2]
[364575745,1749147031922,-296.00618427,0.00022191,2]
[364575746,1749147031931,-1015.78,0.00022191,2]
[364575747,1749147031941,-1698.9,0.000222,2]
[364575748,1749147031950,-662.33750257,0.0002221,6]
[364575749,1749147031959,-662.33750257,0.00022417,7]
[364575750,1749147031968,-1020.45,0.00022465,2]
[364575751,1749147031977,-440.0,0.00022465,2]
[364575752,1749147031987,-549.24,0.00022465,2]
[364575753,1749147031996,-729.22409861,0.00022465,2]
[364575754,1749147032009,-286.55590139,0.00022465,2]
[364575755,1749147032019,-151.0,0.000226,9]
[364575756,1749147032031,-207.4,0.00022605,2]
[364575757,1749147032042,-662.33750257,0.00022624,7]
[364575758,1749147032055,-500.0,0.0002268,2]
[364575759,1749147032065,-1020.45,0.00022739,2]
[364575760,1749147032074,-440.0,0.00022739,2]
[364575761,1749147032084,-549.24,0.00022739,2]
[364575762,1749147032093,-1015.78,0.00022739,2]
[364575763,1749147032102,-662.33750257,0.00022831,8]
[364575764,1749147032112,-500.0,0.00023,2]
[364575765,1749147032121,-500.0,0.00023,2]
[364575766,1749147032130,-1020.45,0.00023013,2]
[364575767,1749147032139,-440.0,0.00023013,2]
[364575768,1749147032150,-549.24,0.00023013,2]
[364575769,1749147032160,-1015.78,0.00023013,2]
[364575770,1749147032169,-662.33750257,0.00023038,8]
[364575771,1749147032178,-150.0,0.00023088,2]
[364575772,1749147032188,-150.0,0.00023088,2]
[364575773,1749147032197,-154.88,0.00023088,2]
[364575774,1749147032207,-2225.0,0.00023088,2]
[364575775,1749147032217,-709.0,0.00023088,2]
[364575776,1749147032226,-405.0,0.00023088,2]
[364575777,1749147032235,-151.0,0.000231,6]
[364575778,1749147032245,-17712.58,0.000231,2]
[364575779,1749147032254,-662.33750257,0.00023245,8]
[364575780,1749147032264,-1020.45,0.00023287,2]
[364575781,1749147032274,-440.0,0.00023287,2]
[364575782,1749147032285,-549.24,0.00023287,2]
[364575783,1749147032294,-1015.78,0.00023287,2]
[364575784,1749147032304,-2220.64,0.0002339,2]
[364575785,1749147032314,-1275.86,0.000234,7]
[364575786,1749147032323,-662.33750257,0.00023452,9]
[364575787,1749147032333,-500.0,0.000235,2]
[364575788,1749147032342,-176.673754,0.0002352,3]
[364575789,1749147032351,-1020.45,0.00023561,2]
[364575790,1749147032361,-440.0,0.00023561,2]
[364575791,1749147032370,-549.24,0.00023561,2]
[364575792,1749147032378,-1015.78,0.00023561,2]
[364575793,1749147032387,-662.33750257,0.00023659,9]
[364575794,1749147032397,-151.0,0.000237,8]
[364575795,1749147032406,-6009.91948102,0.00023788,2]
[364575796,1749147032415,-517.835991,0.0002379,3]
[364575797,1749147032426,-2200.0,0.00023795,2]
[364575798,1749147032435,-151.0,0.000238,8]
[364575799,1749147032449,-155.372,0.00023833,2]
[364575800,1749147032458,-1020.45,0.00023835,2]
[364575801,1749147032468,-440.0,0.00023835,2]
[364575802,1749147032477,-549.24,0.00023835,2]
[364575803,1749147032487,-1015.78,0.00023835,2]
[364575804,1749147032496,-662.33750257,0.00023866,10]
[364575805,1749147032505,-500.0,0.00023897,2]
[364575806,1749147032514,-150.0,0.000239,2]
[364575807,1749147032526,-215.0738,0.00023974,2]
[364575808,1749147032539,-662.33750257,0.00024072,10]
[364575809,1749147032549,-1020.45,0.00024109,2]
[364575810,1749147032558,-479.47823118,0.00024109,2]
[364575811,1749147032568,-549.24,0.00024109,2]
[364575812,1749147032577,-1015.78,0.00024109,2]
[364575813,1749147032587,-159.84245263,0.00024175,2]
[364575814,1749147032597,-689.95067758,0.00024175,2]
[364575815,1749147032607,-2000.0,0.000242,2]
[364575816,1749147032617,-2000.0,0.000242,2]
[364575817,1749147032627,-2000.0,0.000242,2]
[364575818,1749147032636,-618.27747405,0.00024233,2]
[364575819,1749147032646,-726.37,0.00024242,10]
[364575820,1749147032655,-1256.28,0.00024244,10]
[364575821,1749147032664,-1046.9,0.00024244,10]
[364575822,1749147032673,-160.0,0.00024252,3]
[364575823,1749147032683,-151.0,0.00024252,7]
[364575824,1749147032691,-151.0,0.00024252,7]
[364575825,1749147032701,-151.0,0.00024252,7]
[364575826,1749147032711,-151.654972,0.00024252,7]
[364575827,1749147032720,-151.0,0.00024252,7]
[364575828,1749147032729,-151.0,0.00024252,7]
[364575829,1749147032738,-151.0,0.00024252,7]
[364575830,1749147032748,-276.932305,0.00024252,7]
[364575831,1749147032757,-276.932305,0.00024252,7]
[364575832,1749147032767,-276.932305,0.00024252,7]
[364575833,1749147032777,-276.932305,0.00024252,7]
[364575834,1749147032790,-276.932305,0.00024252,7]
[364575835,1749147032799,-276.932305,0.00024252,7]
[364575836,1749147032810,-276.932305,0.00024252,7]
[364575837,1749147032820,-151.0,0.00024252,7]
[364575838,1749147032830,-276.932305,0.00024252,7]
[364575839,1749147032840,-151.0,0.00024252,7]
[364575840,1749147032850,-151.0,0.00024252,7]
[364575841,1749147032860,-276.932305,0.00024252,7]
[364575842,1749147032870,-151.0,0.00024252,7]
[364575843,1749147032879,-206.184248,0.00024252,7]
[364575844,1749147032888,-276.932305,0.00024252,7]
[364575845,1749147032898,-276.932305,0.00024252,7]
[364575846,1749147032907,-276.932305,0.00024252,7]
[364575847,1749147032916,-276.932305,0.00024252,7]
[364575848,1749147032926,-276.932305,0.00024252,7]
[364575849,1749147032935,-276.932305,0.00024252,7]
[364575850,1749147032945,-276.932305,0.00024252,7]
[364575851,1749147032954,-276.932305,0.00024252,7]
[364575852,1749147032963,-276.932305,0.00024252,7]
[364575853,1749147032973,-276.932305,0.00024252,7]
[364575854,1749147033085,-276.932307,0.00024252,7]
[364575855,1749147033095,-298.774663,0.00024254,7]
[364575856,1749147033106,-151.0,0.00024254,7]
[364575857,1749147033118,-151.0,0.00024254,7]
[364575858,1749147033127,-151.0,0.00024254,7]
[364575859,1749147033139,-167.173868,0.00024254,7]
[364575860,1749147033148,-151.0,0.00024254,7]
[364575861,1749147033159,-151.0,0.00024254,7]
[364575862,1749147033170,-151.0,0.00024254,7]
[364575863,1749147033181,-151.0,0.00024254,7]
[364575864,1749147033194,-151.0,0.00024254,7]
[364575865,1749147033204,-151.0,0.00024254,7]
[364575866,1749147033215,-151.0,0.00024254,7]
[364575867,1749147033225,-151.0,0.00024254,7]
[364575868,1749147033235,-151.0,0.00024254,7]
[364575869,1749147033247,-151.0,0.00024254,7]
[364575870,1749147033256,-151.0,0.00024254,7]
[364575871,1749147033266,-151.0,0.00024254,7]
[364575872,1749147033276,-151.0,0.00024254,7]
[364575873,1749147033292,-151.0,0.00024254,7]
[364575874,1749147033303,-194.21,0.00024254,7]
[364575875,1749147033313,-154.155679,0.00024259,7]
[364575876,1749147033325,-151.0,0.00024259,7]
[364575877,1749147033338,-151.0,0.00024259,7]
[364575878,1749147033360,-151.0,0.00024259,7]
[364575879,1749147033372,-151.0,0.00024259,7]
[364575880,1749147033383,-151.0,0.00024259,7]
[364575881,1749147033393,-151.0,0.00024259,7]
[364575882,1749147033402,-151.0,0.00024259,7]
[364575883,1749147033412,-151.0,0.00024259,7]
[364575884,1749147033422,-191.490318,0.00024259,7]
[364575885,1749147033432,-151.0,0.00024259,7]
[364575886,1749147033444,-151.0,0.00024259,7]
[364575887,1749147033456,-151.0,0.00024259,7]
[364575888,1749147033465,-151.0,0.00024259,7]
[364575889,1749147033475,-284.5284,0.00024259,7]
[364575890,1749147033486,-500.98536793,0.00024273,2]
[364575891,1749147033499,-500.0,0.00024273,2]
[364575892,1749147033509,-500.0,0.00024273,2]
[364575893,1749147033522,-503.2118004,0.00024273,2]
[364575894,1749147033535,-500.0,0.00024273,2]
[364575895,1749147033545,-500.0,0.00024273,2]
[364575896,1749147033555,-500.0,0.00024273,2]
[364575897,1749147033565,-500.0,0.00024273,2]
[364575898,1749147033575,-500.0,0.00024273,2]
[364575899,1749147033586,-500.0,0.00024273,2]
[364575900,1749147033596,-500.0,0.00024273,2]
[364575901,1749147033606,-500.0,0.00024273,2]
[364575902,1749147033616,-500.08599476,0.00024273,2]
[364575903,1749147033626,-500.0,0.00024273,2]
[364575904,1749147033637,-600.0,0.00024273,2]
[364575905,1749147033646,-503.13665459,0.00024273,2]
[364575906,1749147033656,-39009.14099396,0.00024275,2]
[364575907,1749147033666,-12223.77531966,0.00024275,3]
[364575908,1749147033676,-315.01552021,0.00024275,30]
[364575909,1749147033685,-131247.51533406,0.00024275,20]
[364575910,1749147033699,-546.50562813,0.00024275,20]
[364575911,1749147033810,440.0,0.00019804,2]
[364575912,1749147033837,440.0,0.00020078,2]
[364575913,1749147033863,440.0,0.00020352,2]
[364575914,1749147033890,328.22574546,0.00020626,2]
[364575915,1749147035805,440.0,0.00018356,2]
[364575916,1749147036063,440.0,0.0001863,2]
[364575917,1749147036133,854.05,0.00018356,2]
[364575918,1749147036224,440.0,0.00018356,2]
[364575919,1749147036346,420.0,0.00018904,2]
[364575920,1749147036382,666.08083629,0.0001863,2]
[364575921,1749147036406,187.96916371,0.0001863,2]
[364575922,1749147036668,854.05,0.00018904,2]
[364575923,1749147036905,854.05,0.00019178,2]
[364575952,1749147037608,854.05,0.00019452,2]
[364575953,1749147037966,854.05,0.00019726,2]
[364575954,1749147037985,-160.0,0.000219,2]
[364575955,1749147037999,-229.48950782,0.000219,2]
[364575956,1749147038014,-872.42,0.00024265,10]
[364575957,1749147038026,-500.0,0.00024274,2]
[364575958,1749147038037,-500.0,0.00024274,2]
[364575959,1749147038047,-341.84634717,0.00024274,2]
[364575960,1749147038059,-693.1597257,0.00024275,20]
[364575961,1749147038075,-470.61133387,0.00024275,20]
[364575963,1749147038517,-2635.90464098,0.00024275,20]
[364575964,1749147038530,-93469.9142223,0.00024275,20]
[364576105,1749147041230,-61726.100637,0.00024275,20]
[364576106,1749147041242,-947553.8002825,0.00024275,20]
[364576107,1749147041251,-809022.76783955,0.00024275,20]
[364576108,1749147041279,854.05,0.0002,2]
[364576109,1749147041313,854.05,0.00020273,2]
[364576110,1749147041340,854.05,0.00020547,2]
[364576111,1749147041368,854.05,0.00020821,2]
[364576112,1749147041395,854.05,0.00021095,2]
[364576113,1749147041427,854.05,0.00021369,2]
[364576114,1749147041459,854.05,0.00021643,2]
[364576115,1749147041472,-160.0,0.000219,2]
[364576116,1749147041481,-246.46787362,0.00023547,2]
[364576117,1749147041491,-453.53212638,0.00024275,20]
[364576145,1749147042667,440.0,0.00018356,2]
[364576146,1749147042735,440.0,0.00018356,2]
[364576147,1749147042857,-854.05,0.00021917,2]
[364576148,1749147042866,-854.05,0.00022191,2]
[364576149,1749147042875,-854.05,0.00022465,2]
[364576150,1749147042884,-854.05,0.00022739,2]
[364576151,1749147042893,-854.05,0.00023013,2]
[364576152,1749147042903,-854.05,0.00023287,2]
[364576153,1749147042913,-611.68542554,0.00024275,20]
[364576154,1749147042940,440.0,0.0001863,2]
[364576155,1749147042953,-974.600025,0.00024275,20]
[364576156,1749147042964,-105900.00000015,0.00024275,20]
[364576157,1749147042976,-863.98633112,0.00024275,20]
[364576158,1749147042988,-10141.92595837,0.00024275,20]
[364576159,1749147042999,-559.26,0.00024275,20]
[364576160,1749147043050,440.0,0.0001863,2]
[364576161,1749147043316,322.03539997,0.00018904,2]
[364576162,1749147044614,440.0,0.00018356,2]
[364576163,1749147044866,440.0,0.0001863,2]
[364576164,1749147045121,440.0,0.00018904,2]
[364576173,1749147045355,440.0,0.00018356,2]
[364576177,1749147045384,440.0,0.00019178,2]
[364576185,1749147045624,440.0,0.00019452,2]
[364576186,1749147045651,531.77443652,0.0001863,2]
[364576188,1749147045760,440.0,0.00018356,2]
[364576189,1749147045969,-854.05,0.00023561,2]
[364576190,1749147045983,-854.05,0.00023835,2]
[364576191,1749147045993,-854.05,0.00024109,2]
[364576192,1749147046002,-8943.02886314,0.00024275,20]
[364576193,1749147046015,-440.85500005,0.00024275,20]
[364576194,1749147046026,-20754.56737738,0.00024275,20]
[364576195,1749147046038,-107557.6959589,0.00024275,20]
[364576196,1749147046050,-15169.55255764,0.00024275,20]
[364576199,1749147046699,440.0,0.00018356,2]
[364576200,1749147046985,440.0,0.0001863,2]
[364576201,1749147047327,440.0,0.00018904,2]
[364576202,1749147047631,440.0,0.00019178,2]
[364576203,1749147048303,440.0,0.00019452,2]
[364576204,1749147048805,430.0,0.00018356,2]
[364576205,1749147052387,440.0,0.00018356,2]
[364576206,1749147052944,440.0,0.0001863,2]
[364576207,1749147053081,440.0,0.00018904,2]
[364576208,1749147053333,440.0,0.00019178,2]
[364576209,1749147053588,470.63991544,0.00019452,2]
[364576210,1749147054602,430.0,0.00018356,2]
[364576211,1749147055211,476.17692621,0.00018356,2]
[364576212,1749147057586,440.0,0.00018356,2]
[364576213,1749147057872,440.0,0.0001863,2]
[364576214,1749147058123,420.0,0.00018904,2]
[364576215,1749147059160,440.0,0.00018356,2]
[364576216,1749147059416,440.0,0.00018356,2]
[364576217,1749147059666,440.0,0.0001863,2]
[364576218,1749147059896,440.0,0.00018904,2]
[364576219,1749147060038,436.7071302,0.0001863,2]
[364576220,1749147060568,440.0,0.00019178,2]
[364576221,1749147060819,440.0,0.00019452,2]
[364576222,1749147061087,440.0,0.00019726,2]
[364576223,1749147061335,440.0,0.0002,2]
[364576224,1749147061585,218.71958168,0.00020273,2]
[364576225,1749147062771,440.0,0.00018356,2]
[364576226,1749147063014,440.0,0.0001863,2]
[364576227,1749147063262,440.0,0.00018904,2]
[364576228,1749147063663,440.0,0.00019178,2]
[364576229,1749147063887,440.0,0.00019452,2]
[364576230,1749147064027,440.0,0.00018356,2]
[364576231,1749147064199,440.0,0.00019726,2]
[364576232,1749147064285,440.0,0.0001863,2]
[364576233,1749147064461,430.0,0.0002,2]
[364576234,1749147064528,440.0,0.00018904,2]
[364576235,1749147064777,440.0,0.00019178,2]
[364576236,1749147065044,440.0,0.00019452,2]
[364576237,1749147065301,430.0,0.00019726,2]
[364576238,1749147066102,440.0,0.00018356,2]
[364576239,1749147066736,440.0,0.0001863,2]
[364576240,1749147066985,440.0,0.00018904,2]
[364576241,1749147067240,440.0,0.00019178,2]
[364576242,1749147067493,292.84,0.00019452,2]
[364576243,1749147069285,440.0,0.00018356,2]
[364576244,1749147070408,440.0,0.00018356,2]
[364576245,1749147070676,440.0,0.0001863,2]
[364576246,1749147070916,440.0,0.00018904,2]
[364576247,1749147071174,440.0,0.00019178,2]
[364576248,1749147071419,440.0,0.00019452,2]
[364576249,1749147071686,440.0,0.00019726,2]
[364576250,1749147071867,430.0,0.00018356,2]
[364576251,1749147071961,476.95,0.0002,2]
[364576252,1749147072666,440.0,0.00018356,2]
[364576253,1749147074481,323.0,0.00018781,2]
[364576254,1749147074978,646.01,0.00020489,2]
[364576255,1749147075974,440.0,0.00018356,2]
[364576256,1749147077074,348.90531776,0.00018356,2]
[364576257,1749147078976,440.0,0.00018356,2]
[364576258,1749147079149,460.33297048,0.0001863,2]
[364576259,1749147080315,440.0,0.00018356,2]
[364576260,1749147080994,440.0,0.0001863,2]
[364576261,1749147081301,440.0,0.00018904,2]
[364576262,1749147081539,440.0,0.00019178,2]
[364576263,1749147081812,440.0,0.00019452,2]
[364576264,1749147082425,488.25,0.00019726,2]
[364576265,1749147082790,440.0,0.00018356,2]
[364576266,1749147084707,440.0,0.00018356,2]
[364576267,1749147086148,440.0,0.00018356,2]
[364576268,1749147086333,430.0,0.00018356,2]
[364576269,1749147086704,430.0,0.0001863,2]
[364576270,1749147088005,4793.786416,0.00021715,2]
[364576271,1749147091586,440.0,0.00019804,2]
[364576272,1749147091791,440.0,0.00020078,2]
[364576273,1749147092077,440.0,0.00020352,2]
[364576274,1749147092321,400.0,0.00020626,2]
[364576275,1749147092644,440.0,0.00018356,2]
[364576276,1749147092708,430.0,0.00018356,2]
[364576277,1749147092904,440.0,0.0001863,2]
[364576278,1749147093169,440.0,0.00018904,2]
[364576279,1749147099253,440.0,0.00018356,2]
[364576280,1749147101984,440.0,0.00018356,2]
[364576281,1749147104991,440.0,0.00018356,2]
[364576282,1749147107304,577.56,0.00018356,2]
[364576283,1749147108889,123.59836229,0.00018356,2]
[364576284,1749147108914,316.40163771,0.00018356,2]
[364576285,1749147111459,417.83333337,0.00018356,2]
[364576286,1749147114862,440.0,0.00018356,2]
[364576287,1749147115110,414.39140681,0.0001863,2]
[364576288,1749147117648,440.0,0.00018356,2]
[364576289,1749147119706,440.0,0.00018356,2]
[364576291,1749147123677,440.0,0.00019804,2]
[364576292,1749147123768,396.79157238,0.00018356,2]
[364576293,1749147123919,410.0,0.00020078,2]
[364576294,1749147126037,440.0,0.00018356,2]
[364576295,1749147126199,430.0,0.00019804,2]
[364576296,1749147126337,440.0,0.0001863,2]
[364576297,1749147126597,430.0,0.00018904,2]
[364576298,1749147126896,480.38358339,0.00018356,2]
[364576299,1749147127122,430.0,0.00018356,2]
[364576300,1749147128200,440.0,0.00018356,2]
[364576301,1749147128449,430.0,0.0001863,2]
[364576302,1749147128511,440.0,0.00018356,2]
[364576303,1749147128541,200.94979533,0.00016992,2]
[364576304,1749147128772,440.0,0.0001863,2]
[364576305,1749147130558,440.0,0.00018356,2]
[364576306,1749147130890,335.53661525,0.00019804,2]
[364576307,1749147132653,440.0,0.00018356,2]
[364576308,1749147135027,440.0,0.00018356,2]
[364576309,1749147135291,390.0,0.0001863,2]
[364576310,1749147135881,440.0,0.00018356,2]
[364576311,1749147137782,430.0,0.00018356,2]
[364576312,1749147139540,440.0,0.00018356,2]
[364576313,1749147139782,430.0,0.0001863,2]
[364576314,1749147140830,159.626106,0.00013699,2]
[364576315,1749147141039,159.626106,0.00020951,2]
[364576316,1749147141788,440.0,0.00019804,2]
[364576317,1749147142028,440.0,0.00020078,2]
[364576318,1749147142296,269.40985428,0.00018356,2]
[364576320,1749147424607,168.852059,0.00022712,120]
[364576325,1749147932101,-184.33175092,0.00016285,2]
[364576326,1749147932124,-255.70765073,0.00016668,2]
[364576327,1749147932145,-157.61872207,0.00016768,2]
[364576328,1749147932167,-356.58,0.00016868,2]
[364576329,1749147932188,-300.0,0.0001751,2]
[364576330,1749147932209,-247.82944545,0.00017511,2]
[364576332,1749148028078,-350.1,0.00016846,2]
[364576333,1749148028102,-24652.17055455,0.00017511,2]
[364576334,1749148028122,-157.61872207,0.00018145,3]
[364576335,1749148028145,-197.43691166,0.00018256,2]
[364576336,1749148028165,-14300.0,0.00018344,2]
[364576337,1749148028185,-50000.0,0.00018345,2]
[364576338,1749148028206,-156.587,0.00018345,2]
[364576339,1749148028226,-16000.0,0.00018345,2]
[364576340,1749148028245,-11372.31235965,0.00018345,2]
[364576341,1749148028266,-500.0,0.00018355,2]
[364576342,1749148028287,-414.59588258,0.00018355,2]
[364576343,1749148028308,-500.0,0.00018355,2]
[364576344,1749148028329,-500.0,0.00018355,2]
[364576345,1749148028350,-500.0,0.00018355,2]
[364576346,1749148028371,-500.0,0.00018355,2]
[364576347,1749148028391,-500.0,0.00018355,2]
[364576348,1749148028415,-500.0,0.00018355,2]
[364576349,1749148028437,-500.0,0.00018355,2]
[364576350,1749148028459,-500.0,0.00018355,2]
[364576351,1749148028480,-500.0,0.00018355,2]
[364576352,1749148028502,-500.0,0.00018355,2]
[364576353,1749148028524,-439.72126762,0.00018355,2]
[364576354,1749148028547,-500.0,0.00018355,2]
[364576355,1749148028567,-500.0,0.00018355,2]
[364576356,1749148028589,-500.0,0.00018355,2]
[364576357,1749148028610,-500.0,0.00018355,2]
[364576358,1749148028631,-448.42474342,0.00018355,2]